[Event "Superettan 2017/2018"]
[Site "Vegagatan 20, Gothenburg, Sweden"]
[Date "2018.02.02"]
[Round "1.1"]
[White "Tukhaev, Adam"]
[Black "Rozentalis, Eduardas"]
[Result "1/2-1/2"]
[TimeControl "90 minutes for 40 moves + 30 minutes for the rest of the game + 30 seconds per move from move one."]
[WhiteTitle "GM"]
[BlackTitle "GM"]
[WhiteFideId "14109476"]
[BlackFideId "12800023"]
[WhiteElo "2556"]
[BlackElo "2520"]

1. e4 {[%clk 01:30:56]} {[%emt 00:00:03]} e5 {[%clk 01:30:43]} {[%emt
00:00:17]} 2. Nf3 {[%clk 01:31:12]} {[%emt 00:00:15]} Nf6 {[%clk 01:31:09]}
{[%emt 00:00:04]} 3. Nxe5 {[%clk 01:29:52]} {[%emt 00:01:50]} d6 {[%clk
01:31:23]} {[%emt 00:00:16]} 4. Nf3 {[%clk 01:30:17]} {[%emt 00:00:05]} Nxe4
{[%clk 01:31:49]} {[%emt 00:00:04]} 5. Nc3 {[%clk 01:30:41]} {[%emt 00:00:06]}
Nf6 {[%clk 01:31:13]} {[%emt 00:01:06]} 6. d4 {[%clk 01:30:39]} {[%emt
00:00:32]} Be7 {[%clk 01:31:38]} {[%emt 00:00:06]} 7. Bd3 {[%clk 01:30:36]}
{[%emt 00:00:32]} O-O {[%clk 01:31:14]} {[%emt 00:00:53]} 8. Ne2 {[%clk
01:24:54]} {[%emt 00:06:12]} c5 {[%clk 01:29:04]} {[%emt 00:02:40]} 9. h3
{[%clk 01:19:35]} {[%emt 00:05:49]} Nc6 {[%clk 01:26:53]} {[%emt 00:02:41]} 10.
dxc5 {[%clk 01:01:17]} {[%emt 00:18:49]} dxc5 {[%clk 01:27:06]} {[%emt
00:00:17]} 11. c3 {[%clk 01:01:22]} {[%emt 00:00:24]} h6 {[%clk 01:22:07]}
{[%emt 00:35:31]} 12. O-O {[%clk 00:54:55]} a6 {[%clk 01:18:31]} 13. Qc2 {[%clk
00:52:37]} Bd6 {[%clk 01:13:04]} 14. Rd1 {[%clk 00:37:48]} {[%emt 00:05:05]}
Qc7 {[%clk 01:12:05]} {[%emt 00:01:29]} 15. Qa4 {[%clk 00:36:11]} {[%emt
00:02:08]} Ne7 {[%clk 00:52:47]} {[%emt 00:19:48]} 16. Bf4 {[%clk 00:34:52]}
{[%emt 00:01:48]} Bxf4 {[%clk 00:51:25]} {[%emt 00:01:52]} 17. Qxf4 {[%clk
00:35:10]} {[%emt 00:00:12]} Qxf4 {[%clk 00:50:49]} {[%emt 00:01:07]} 18. Nxf4
{[%clk 00:35:36]} {[%emt 00:00:04]} g5 {[%clk 00:44:47]} {[%emt 00:06:32]} 19.
Ne2 {[%clk 00:30:37]} {[%emt 00:05:29]} Re8 {[%clk 00:35:51]} {[%emt 00:09:26]}
20. h4 {[%clk 00:21:37]} {[%emt 00:09:31]} g4 {[%clk 00:34:11]} {[%emt
00:02:10]} 21. Ne5 {[%clk 00:20:30]} {[%emt 00:01:36]} Be6 {[%clk 00:31:31]}
{[%emt 00:03:09]} 22. Nf4 {[%clk 00:13:37]} {[%emt 00:07:24]} Ned5 {[%clk
00:29:24]} {[%emt 00:02:37]} 23. Nxd5 {[%clk 00:11:16]} {[%emt 00:02:50]} Bxd5
{[%clk 00:28:10]} {[%emt 00:01:44]} 24. Nc4 {[%clk 00:10:51]} {[%emt 00:00:56]}
Bxc4 {[%clk 00:23:43]} {[%emt 00:04:57]} 25. Bxc4 {[%clk 00:11:17]} {[%emt
00:00:04]} b5 {[%clk 00:23:57]} {[%emt 00:00:16]} 26. Bf1 {[%clk 00:11:12]}
{[%emt 00:00:35]} Rad8 {[%clk 00:23:53]} {[%emt 00:00:34]} 27. a4 {[%clk
00:09:43]} {[%emt 00:01:58]} c4 {[%clk 00:24:07]} {[%emt 00:00:16]} 28. g3
{[%clk 00:07:17]} {[%emt 00:02:56]} Kg7 {[%clk 00:17:25]} {[%emt 00:07:12]} 29.
axb5 {[%clk 00:05:00]} {[%emt 00:02:47]} 1/2-1/2

[Event "Superettan 2017/2018"]
[Site "Vegagatan 20, Gothenburg, Sweden"]
[Date "2018.02.02"]
[Round "1.2"]
[White "Welin, Mats"]
[Black "Kumar, Rahul"]
[Result "1/2-1/2"]
[TimeControl "90 minutes for 40 moves + 30 minutes for the rest of the game + 30 seconds per move from move one."]
[WhiteTitle "FM"]
[WhiteFideId "1705180"]
[BlackFideId "5010969"]
[WhiteElo "2314"]
[BlackElo "2183"]

1. e4 {[%clk 01:30:47]} {[%emt 00:00:12]} g6 {[%clk 01:30:27]} {[%emt
00:00:33]} 2. d4 {[%clk 01:30:48]} {[%emt 00:00:29]} Bg7 {[%clk 01:29:57]}
{[%emt 00:01:00]} 3. Nc3 {[%clk 01:30:41]} {[%emt 00:00:37]} c6 {[%clk
01:28:33]} {[%emt 00:01:53]} 4. Nf3 {[%clk 01:30:10]} {[%emt 00:01:01]} d5
{[%clk 01:28:50]} {[%emt 00:00:12]} 5. h3 {[%clk 01:29:45]} {[%emt 00:00:56]}
Nf6 {[%clk 01:22:52]} {[%emt 00:06:29]} 6. e5 {[%clk 01:26:54]} {[%emt
00:03:20]} Nfd7 {[%clk 01:20:28]} {[%emt 00:02:53]} 7. Ne2 {[%clk 01:13:25]}
{[%emt 00:14:00]} e6 {[%clk 01:16:17]} {[%emt 00:04:40]} 8. Nf4 {[%clk
01:06:44]} {[%emt 00:07:12]} c5 {[%clk 01:09:59]} {[%emt 00:33:05]} 9. c3
{[%clk 01:03:21]} b6 {[%clk 00:54:17]} 10. h4 {[%clk 00:56:17]} {[%emt
00:01:22]} Ba6 {[%clk 00:37:52]} {[%emt 00:16:55]} 11. h5 {[%clk 00:52:45]}
{[%emt 00:04:02]} Bxf1 {[%clk 00:35:47]} {[%emt 00:02:35]} 12. Kxf1 {[%clk
00:52:56]} {[%emt 00:00:19]} Nc6 {[%clk 00:35:23]} {[%emt 00:00:54]} 13. Qd3
{[%clk 00:45:09]} {[%emt 00:08:18]} Qe7 {[%clk 00:27:45]} {[%emt 00:08:05]} 14.
Qb5 {[%clk 00:33:55]} {[%emt 00:11:45]} Rc8 {[%clk 00:27:14]} {[%emt 00:01:00]}
15. hxg6 {[%clk 00:32:50]} {[%emt 00:01:37]} hxg6 {[%clk 00:26:44]} {[%emt
00:00:59]} 16. Rxh8+ {[%clk 00:31:51]} {[%emt 00:01:29]} Bxh8 {[%clk 00:26:58]}
{[%emt 00:00:16]} 17. Bd2 {[%clk 00:27:26]} {[%emt 00:04:55]} g5 {[%clk
00:23:02]} {[%emt 00:04:26]} 18. Ne2 {[%clk 00:24:58]} {[%emt 00:02:59]} g4
{[%clk 00:23:21]} {[%emt 00:00:09]} 19. Ng5 {[%clk 00:24:09]} {[%emt 00:01:20]}
Bg7 {[%clk 00:23:42]} {[%emt 00:00:09]} 20. Qd3 {[%clk 00:24:00]} {[%emt
00:00:40]} Bh6 {[%clk 00:17:37]} {[%emt 00:06:34]} 21. Qh7 {[%clk 00:20:52]}
{[%emt 00:03:39]} Bxg5 {[%clk 00:14:52]} {[%emt 00:03:15]} 22. Qg8+ {[%clk
00:20:22]} {[%emt 00:01:00]} Qf8 {[%clk 00:15:15]} {[%emt 00:00:07]} 23. Qxg5
{[%clk 00:20:46]} {[%emt 00:00:05]} Qh8 {[%clk 00:10:05]} {[%emt 00:05:40]} 24.
Qxg4 {[%clk 00:14:38]} {[%emt 00:06:39]} Kd8 {[%clk 00:09:34]} {[%emt
00:01:01]} 25. g3 {[%clk 00:11:35]} {[%emt 00:03:33]} Qh1+ {[%clk 00:09:04]}
{[%emt 00:00:59]} 26. Ng1 {[%clk 00:11:59]} {[%emt 00:00:06]} Qh7 {[%clk
00:09:21]} {[%emt 00:00:13]} 27. Kg2 {[%clk 00:08:49]} {[%emt 00:03:40]} Kc7
{[%clk 00:09:17]} {[%emt 00:00:34]} 28. Nf3 {[%clk 00:06:35]} {[%emt 00:02:44]}
Rh8 {[%clk 00:05:45]} {[%emt 00:04:02]} 29. Re1 {[%clk 00:05:16]} {[%emt
00:01:49]} Kc8 {[%clk 00:04:35]} {[%emt 00:01:39]} 30. Ng5 {[%clk 00:04:25]}
{[%emt 00:01:22]} Qh2+ {[%clk 00:04:01]} {[%emt 00:01:04]} 31. Kf1 {[%clk
00:04:36]} {[%emt 00:00:19]} Rg8 {[%clk 00:04:13]} {[%emt 00:00:18]} 32. Ke2
{[%clk 00:03:40]} {[%emt 00:01:26]} Rg7 {[%clk 00:03:01]} {[%emt 00:01:42]} 33.
Qf3 {[%clk 00:03:35]} {[%emt 00:00:35]} Qh6 {[%clk 00:02:32]} {[%emt 00:00:58]}
34. Nxf7 {[%clk 00:02:56]} {[%emt 00:01:09]} Qg6 {[%clk 00:02:48]} {[%emt
00:00:13]} 35. Nd6+ {[%clk 00:01:50]} {[%emt 00:01:37]} Kd8 {[%clk 00:02:38]}
{[%emt 00:00:37]} 36. Qf4 {[%clk 00:01:18]} {[%emt 00:01:05]} Qh5+ {[%clk
00:02:17]} {[%emt 00:00:51]} 37. Kd3 {[%clk 00:01:16]} {[%emt 00:00:32]} cxd4
{[%clk 00:02:16]} {[%emt 00:00:31]} 38. cxd4 {[%clk 00:01:00]} {[%emt
00:00:46]} Rg4 {[%clk 00:02:35]} {[%emt 00:00:10]} 39. Qf7 {[%clk 00:00:57]}
{[%emt 00:00:33]} Rxd4+ {[%clk 00:02:43]} {[%emt 00:00:21]} 40. Kc2 {[%clk
00:00:55]} {[%emt 00:00:34]} Qxf7 {[%clk 00:00:50]} {[%emt 00:02:23]} 41. Nxf7+
{[%clk 00:01:14]} {[%emt 00:00:10]} Ke7 {[%clk 00:27:42]} {[%emt 00:03:37]} 42.
Ng5 {[%clk 00:22:17]} {[%emt 00:09:28]} Rc4+ {[%clk 00:23:03]} {[%emt
00:05:09]} 43. Kd1 {[%clk 00:20:01]} {[%emt 00:02:47]} Ra4 {[%clk 00:21:26]}
{[%emt 00:02:06]} 44. a3 {[%clk 00:18:38]} {[%emt 00:01:54]} Nc5 {[%clk
00:21:48]} {[%emt 00:00:08]} 45. Rh1 {[%clk 00:12:01]} {[%emt 00:07:07]} Nxe5
{[%clk 00:20:20]} {[%emt 00:01:58]} 46. Rh6 {[%clk 00:10:18]} {[%emt 00:02:13]}
Ng4 {[%clk 00:18:42]} {[%emt 00:02:08]} 47. Rh7+ {[%clk 00:09:37]} {[%emt
00:01:11]} Kf6 {[%clk 00:18:56]} {[%emt 00:00:15]} 48. f3 {[%clk 00:09:07]}
{[%emt 00:01:01]} Ne5 {[%clk 00:18:02]} {[%emt 00:01:23]} 49. b4 {[%clk
00:07:03]} {[%emt 00:02:36]} Nb3 {[%clk 00:15:45]} {[%emt 00:02:47]} 50. Rh6+
{[%clk 00:04:39]} {[%emt 00:02:54]} Kf5 {[%clk 00:08:00]} {[%emt 00:08:12]} 51.
g4+ {[%clk 00:01:59]} {[%emt 00:03:14]} Nxg4 {[%clk 00:08:21]} {[%emt
00:00:07]} 52. fxg4+ {[%clk 00:02:27]} {[%emt 00:00:03]} Kxg4 {[%clk 00:08:42]}
{[%emt 00:00:08]} 53. Nxe6 {[%clk 00:02:41]} {[%emt 00:00:16]} Nxd2 {[%clk
00:09:03]} {[%emt 00:00:08]} 54. Kxd2 {[%clk 00:03:07]} {[%emt 00:00:05]} Rxa3
{[%clk 00:09:23]} {[%emt 00:00:10]} 55. Rf6 {[%clk 00:03:04]} {[%emt 00:00:34]}
Rb3 {[%clk 00:08:39]} {[%emt 00:01:12]} 56. Rg6+ {[%clk 00:01:07]} {[%emt
00:02:28]} Kh4 {[%clk 00:08:06]} {[%emt 00:01:02]} 57. Rh6 {[%clk 00:00:43]}
{[%emt 00:00:55]} Kg4 {[%clk 00:08:18]} {[%emt 00:00:18]} 58. Rg6+ {[%clk
00:00:44]} {[%emt 00:00:30]} Kh4 {[%clk 00:08:41]} {[%emt 00:00:06]} 59. Nd4
{[%clk 00:00:40]} {[%emt 00:00:35]} Rxb4 {[%clk 00:08:15]} {[%emt 00:00:55]} 60.
Ke3 {[%clk 00:01:03]} {[%emt 00:00:08]} a5 {[%clk 00:07:06]} {[%emt 00:01:38]}
61. Rd6 {[%clk 00:00:44]} {[%emt 00:00:50]} Kg5 {[%clk 00:04:56]} {[%emt
00:02:40]} 62. Rxd5+ {[%clk 00:01:10]} {[%emt 00:00:05]} Kf6 {[%clk 00:05:15]}
{[%emt 00:00:09]} 63. Kf4 {[%clk 00:01:29]} {[%emt 00:00:12]} Rb1 {[%clk
00:04:10]} {[%emt 00:01:34]} 64. Rd6+ {[%clk 00:01:46]} {[%emt 00:00:14]} Ke7
{[%clk 00:04:17]} {[%emt 00:00:22]} 65. Ke5 {[%clk 00:01:55]} {[%emt 00:00:22]}
a4 {[%clk 00:04:38]} {[%emt 00:00:09]} 66. Nf5+ {[%clk 00:02:08]} {[%emt
00:00:16]} Ke8 {[%clk 00:02:28]} {[%emt 00:02:40]} 67. Kf6 {[%clk 00:01:13]}
{[%emt 00:01:25]} Rf1 {[%clk 00:02:57]} {[%emt 00:00:01]} 68. Rxb6 {[%clk
00:01:34]} {[%emt 00:00:09]} a3 {[%clk 00:02:29]} {[%emt 00:00:58]} 69. Ra6
{[%clk 00:01:48]} {[%emt 00:00:16]} Ra1 {[%clk 00:02:32]} {[%emt 00:00:26]} 70.
Ke6 {[%clk 00:01:30]} {[%emt 00:00:49]} Re1+ {[%clk 00:02:56]} {[%emt
00:00:06]} 71. Kd5 {[%clk 00:01:54]} {[%emt 00:00:06]} Ra1 {[%clk 00:03:19]}
{[%emt 00:00:06]} 72. Ke6 {[%clk 00:01:31]} {[%emt 00:00:54]} Re1+ {[%clk
00:03:42]} {[%emt 00:00:06]} 73. Kf6 {[%clk 00:01:56]} {[%emt 00:00:06]} Ra1
{[%clk 00:03:57]} {[%emt 00:00:14]} 74. Ke6 {[%clk 00:01:22]} {[%emt 00:01:05]}
1/2-1/2

[Event "Superettan 2017/2018"]
[Site "Vegagatan 20, Gothenburg, Sweden"]
[Date "2018.02.02"]
[Round "1.3"]
[White "Arnelind, Mikael"]
[Black "Al Hadarani, Hatim"]
[Result "0-1"]
[TimeControl "90 minutes for 40 moves + 30 minutes for the rest of the game + 30 seconds per move from move one."]
[BlackTitle "FM"]
[WhiteFideId "1704290"]
[BlackFideId "9400273"]
[WhiteElo "2220"]
[BlackElo "2319"]

1. d4 {[%clk 01:30:56]} {[%emt 00:00:04]} c6 {[%clk 01:29:41]} {[%emt
00:01:20]} 2. c4 {[%clk 01:30:58]} {[%emt 00:00:28]} f5 {[%clk 01:29:53]}
{[%emt 00:00:19]} 3. g3 {[%clk 01:30:16]} {[%emt 00:01:12]} Nf6 {[%clk
01:28:55]} {[%emt 00:01:27]} 4. Bg2 {[%clk 01:30:12]} {[%emt 00:00:34]} e6
{[%clk 01:25:59]} {[%emt 00:03:26]} 5. Nh3 {[%clk 01:26:34]} {[%emt 00:04:08]}
Bb4+ {[%clk 01:23:22]} {[%emt 00:03:06]} 6. Nd2 {[%clk 01:24:23]} {[%emt
00:02:41]} d5 {[%clk 01:19:07]} {[%emt 00:04:45]} 7. O-O {[%clk 01:19:47]}
{[%emt 00:05:06]} O-O {[%clk 01:15:10]} {[%emt 00:04:27]} 8. Qc2 {[%clk
01:17:09]} {[%emt 00:03:08]} Qe8 {[%clk 01:11:29]} {[%emt 00:04:12]} 9. Nf3
{[%clk 01:14:06]} {[%emt 00:03:33]} h6 {[%clk 01:04:30]} {[%emt 00:34:42]} 10.
Nf4 {[%clk 01:02:46]} g5 {[%clk 00:53:17]} 11. Nd3 {[%clk 01:03:07]} Be7 {[%clk
00:52:01]} 12. b4 {[%clk 00:44:50]} {[%emt 00:17:02]} Rf7 {[%clk 00:30:50]}
{[%emt 00:21:41]} 13. a4 {[%clk 00:41:38]} {[%emt 00:03:41]} Rh7 {[%clk
00:22:30]} {[%emt 00:08:51]} 14. b5 {[%clk 00:39:50]} {[%emt 00:02:18]} Ne4
{[%clk 00:12:07]} {[%emt 00:10:53]} 15. Nfe5 {[%clk 00:28:45]} {[%emt
00:11:35]} h5 {[%clk 00:11:53]} {[%emt 00:00:44]} 16. f3 {[%clk 00:18:52]}
{[%emt 00:10:22]} Nd6 {[%clk 00:11:45]} {[%emt 00:00:38]} 17. c5 {[%clk
00:16:54]} {[%emt 00:02:29]} Nf7 {[%clk 00:11:31]} {[%emt 00:00:43]} 18. Nxf7
{[%clk 00:15:49]} {[%emt 00:01:36]} Qxf7 {[%clk 00:11:40]} {[%emt 00:00:21]} 19.
e4 {[%clk 00:14:53]} {[%emt 00:01:26]} Nd7 {[%clk 00:09:13]} {[%emt 00:02:57]}
20. bxc6 {[%clk 00:12:02]} {[%emt 00:03:21]} bxc6 {[%clk 00:09:33]} {[%emt
00:00:10]} 21. Nb4 {[%clk 00:11:19]} {[%emt 00:01:13]} h4 {[%clk 00:06:09]}
{[%emt 00:03:54]} 22. Nxc6 {[%clk 00:10:47]} {[%emt 00:01:01]} hxg3 {[%clk
00:05:09]} {[%emt 00:01:30]} 23. Nxe7+ {[%clk 00:11:04]} {[%emt 00:00:13]} Qxe7
{[%clk 00:05:30]} {[%emt 00:00:08]} 24. hxg3 {[%clk 00:11:15]} {[%emt
00:00:19]} Qg7 {[%clk 00:02:58]} {[%emt 00:03:02]} 25. Qd2 {[%clk 00:08:22]}
{[%emt 00:03:23]} f4 {[%clk 00:00:53]} {[%emt 00:02:36]} 26. gxf4 {[%clk
00:08:16]} {[%emt 00:00:36]} Qh6 {[%clk 00:01:01]} {[%emt 00:00:21]} 27. fxg5
{[%clk 00:08:10]} {[%emt 00:00:36]} Qh2+ {[%clk 00:01:11]} {[%emt 00:00:20]} 28.
Kf2 {[%clk 00:08:38]} {[%emt 00:00:03]} Qh4+ {[%clk 00:01:02]} {[%emt
00:00:39]} 29. Ke3 {[%clk 00:07:53]} {[%emt 00:01:14]} dxe4 {[%clk 00:00:33]}
{[%emt 00:01:00]} 30. Qf2 {[%clk 00:05:09]} {[%emt 00:03:14]} Qxg5+ {[%clk
00:00:42]} {[%emt 00:00:21]} 31. f4 {[%clk 00:05:19]} {[%emt 00:00:20]} Qd5
{[%clk 00:00:44]} {[%emt 00:00:28]} 32. Qa2 {[%clk 00:04:37]} {[%emt 00:01:12]}
Qf5 {[%clk 00:00:35]} {[%emt 00:00:39]} 33. Bxe4 {[%clk 00:04:22]} {[%emt
00:00:45]} Rh3+ {[%clk 00:00:38]} {[%emt 00:00:27]} 34. Rf3 {[%clk 00:04:45]}
{[%emt 00:00:07]} Rxf3+ {[%clk 00:00:35]} {[%emt 00:00:33]} 35. Bxf3 {[%clk
00:04:59]} {[%emt 00:00:16]} Rb8 {[%clk 00:00:36]} {[%emt 00:00:29]} 36. Ba3
{[%clk 00:04:24]} {[%emt 00:01:04]} Nf6 {[%clk 00:00:33]} {[%emt 00:00:33]} 37.
Rg1+ {[%clk 00:04:21]} {[%emt 00:00:33]} Kf7 {[%clk 00:00:50]} {[%emt
00:00:14]} 38. Rg5 {[%clk 00:01:08]} {[%emt 00:03:42]} Qh3 {[%clk 00:01:07]}
{[%emt 00:00:12]} 39. Qc2 {[%clk 00:00:38]} {[%emt 00:01:02]} Nd5+ {[%clk
00:01:05]} {[%emt 00:00:31]} 40. Rxd5 {[%clk 00:00:38]} {[%emt 00:00:30]} exd5
{[%clk 00:01:25]} {[%emt 00:00:11]} 41. Qa2 {[%clk 00:23:50]} {[%emt 00:07:18]}
Be6 {[%clk 00:26:37]} {[%emt 00:05:17]} 42. Bc1 {[%clk 00:18:59]} {[%emt
00:05:22]} Qf1 {[%clk 00:15:24]} {[%emt 00:11:43]} 43. Bd2 {[%clk 00:15:00]}
{[%emt 00:04:30]} Kf6 {[%clk 00:09:59]} {[%emt 00:05:55]} 44. Ba5 {[%clk
00:04:08]} {[%emt 00:11:21]} Bf5 {[%clk 00:04:22]} {[%emt 00:06:07]} 45. Be2
{[%clk 00:02:00]} {[%emt 00:02:39]} Re8+ {[%clk 00:04:24]} {[%emt 00:00:28]}
0-1

[Event "Superettan 2017/2018"]
[Site "Vegagatan 20, Gothenburg, Sweden"]
[Date "2018.02.02"]
[Round "1.4"]
[White "Fendrich, David"]
[Black "Virolainen, Victor"]
[Result "1/2-1/2"]
[TimeControl "90 minutes for 40 moves + 30 minutes for the rest of the game + 30 seconds per move from move one."]
[WhiteFideId "1705725"]
[BlackFideId "1710672"]
[WhiteElo "2244"]
[BlackElo "2173"]

1. Nf3 {[%clk 01:30:55]} {[%emt 00:00:04]} Nf6 {[%clk 01:30:43]} {[%emt
00:00:17]} 2. g3 {[%clk 01:31:17]} {[%emt 00:00:08]} d5 {[%clk 01:31:02]}
{[%emt 00:00:11]} 3. Bg2 {[%clk 01:31:39]} {[%emt 00:00:08]} Bg4 {[%clk
01:30:23]} {[%emt 00:01:10]} 4. O-O {[%clk 01:30:32]} {[%emt 00:01:36]} e6
{[%clk 01:29:03]} {[%emt 00:01:49]} 5. b3 {[%clk 01:29:57]} {[%emt 00:01:05]}
Bd6 {[%clk 01:29:23]} {[%emt 00:00:10]} 6. Bb2 {[%clk 01:30:21]} {[%emt
00:00:07]} Nbd7 {[%clk 01:29:49]} {[%emt 00:00:04]} 7. c4 {[%clk 01:30:26]}
{[%emt 00:00:25]} c6 {[%clk 01:27:51]} {[%emt 00:02:28]} 8. Na3 {[%clk
01:27:28]} {[%emt 00:03:27]} Qe7 {[%clk 01:22:35]} {[%emt 00:05:46]} 9. Nc2
{[%clk 01:26:14]} {[%emt 00:01:44]} O-O {[%clk 01:15:00]} {[%emt 00:08:05]} 10.
Ne3 {[%clk 01:26:27]} {[%emt 00:00:17]} Bh5 {[%clk 01:09:12]} {[%emt 00:06:19]}
11. d3 {[%clk 01:20:18]} {[%emt 00:06:40]} Rac8 {[%clk 01:00:34]} {[%emt
00:36:39]} 12. Qd2 {[%clk 01:16:04]} Bb4 {[%clk 00:50:10]} 13. Qd1 {[%clk
01:03:56]} {[%emt 00:00:44]} b5 {[%clk 00:32:56]} {[%emt 00:17:43]} 14. a3
{[%clk 00:54:51]} {[%emt 00:09:36]} Bc5 {[%clk 00:31:36]} {[%emt 00:01:50]} 15.
cxb5 {[%clk 00:48:32]} {[%emt 00:06:49]} cxb5 {[%clk 00:30:27]} {[%emt
00:01:38]} 16. Nd4 {[%clk 00:47:17]} {[%emt 00:01:44]} a6 {[%clk 00:28:25]}
{[%emt 00:02:33]} 17. a4 {[%clk 00:41:00]} {[%emt 00:06:47]} b4 {[%clk
00:24:26]} {[%emt 00:04:29]} 18. Qd2 {[%clk 00:38:19]} {[%emt 00:03:10]} a5
{[%clk 00:22:02]} {[%emt 00:02:54]} 19. Rac1 {[%clk 00:36:54]} {[%emt
00:01:55]} Bb6 {[%clk 00:19:07]} {[%emt 00:03:27]} 20. f4 {[%clk 00:23:54]}
{[%emt 00:13:29]} Nc5 {[%clk 00:15:22]} {[%emt 00:04:15]} 21. Kh1 {[%clk
00:22:37]} {[%emt 00:01:46]} Qa7 {[%clk 00:13:33]} {[%emt 00:02:20]} 22. Nec2
{[%clk 00:20:56]} {[%emt 00:02:11]} Bg6 {[%clk 00:11:28]} {[%emt 00:02:35]} 23.
Nb5 {[%clk 00:19:15]} {[%emt 00:02:11]} Qe7 {[%clk 00:08:29]} {[%emt 00:03:29]}
24. Ncd4 {[%clk 00:19:14]} {[%emt 00:00:32]} Ne8 {[%clk 00:05:07]} {[%emt
00:03:52]} 25. Ba1 {[%clk 00:15:40]} {[%emt 00:04:04]} Nd6 {[%clk 00:04:48]}
{[%emt 00:00:49]} 26. Qb2 {[%clk 00:15:22]} {[%emt 00:00:48]} f6 {[%clk
00:05:13]} {[%emt 00:00:05]} 27. Nxd6 {[%clk 00:11:39]} {[%emt 00:04:13]} Qxd6
{[%clk 00:05:39]} {[%emt 00:00:04]} 28. f5 {[%clk 00:11:29]} {[%emt 00:00:40]}
Bf7 {[%clk 00:05:51]} {[%emt 00:00:17]} 29. fxe6 {[%clk 00:11:28]} {[%emt
00:00:31]} Bxe6 {[%clk 00:05:06]} {[%emt 00:01:15]} 30. Nf5 {[%clk 00:07:43]}
{[%emt 00:04:15]} Qd7 {[%clk 00:05:29]} {[%emt 00:00:07]} 31. g4 {[%clk
00:07:42]} {[%emt 00:00:31]} d4 {[%clk 00:04:29]} {[%emt 00:01:31]} 32. Qxd4
{[%clk 00:03:56]} {[%emt 00:04:16]} Bxf5 {[%clk 00:04:20]} {[%emt 00:00:39]} 33.
gxf5 {[%clk 00:03:44]} {[%emt 00:00:42]} Qxd4 {[%clk 00:04:39]} {[%emt
00:00:11]} 34. Bxd4 {[%clk 00:04:08]} {[%emt 00:00:06]} Nxa4 {[%clk 00:04:51]}
{[%emt 00:00:18]} 35. Bd5+ {[%clk 00:01:17]} {[%emt 00:03:20]} Kh8 {[%clk
00:05:17]} {[%emt 00:00:04]} 36. Bxb6 {[%clk 00:01:42]} {[%emt 00:00:05]} Nxb6
{[%clk 00:05:41]} {[%emt 00:00:06]} 37. Be6 {[%clk 00:02:09]} {[%emt 00:00:03]}
Rxc1 {[%clk 00:04:45]} {[%emt 00:01:27]} 38. Rxc1 {[%clk 00:02:34]} {[%emt
00:00:05]} a4 {[%clk 00:04:37]} {[%emt 00:00:38]} 39. bxa4 {[%clk 00:02:59]}
{[%emt 00:00:06]} Nxa4 {[%clk 00:04:54]} {[%emt 00:00:13]} 40. Kg2 {[%clk
00:01:54]} {[%emt 00:01:35]} g5 {[%clk 00:01:38]} {[%emt 00:03:45]} 41. Kf3
{[%clk 00:20:25]} {[%emt 00:11:58]} h5 {[%clk 00:18:05]} {[%emt 00:14:03]} 42.
Ke3 {[%clk 00:14:07]} {[%emt 00:06:48]} Rb8 {[%clk 00:14:14]} {[%emt 00:04:21]}
43. d4 {[%clk 00:09:30]} {[%emt 00:05:06]} b3 {[%clk 00:13:59]} {[%emt
00:00:46]} 44. Rb1 {[%clk 00:08:24]} {[%emt 00:01:36]} b2 {[%clk 00:14:05]}
{[%emt 00:00:24]} 45. Kd3 {[%clk 00:08:07]} {[%emt 00:00:47]} Kg7 {[%clk
00:14:07]} {[%emt 00:00:28]} 46. Kc2 {[%clk 00:05:14]} {[%emt 00:03:23]} Rb4
{[%clk 00:09:07]} {[%emt 00:05:31]} 47. e3 {[%clk 00:04:56]} {[%emt 00:00:47]}
g4 {[%clk 00:08:41]} {[%emt 00:00:57]} 48. Bb3 {[%clk 00:04:30]} {[%emt
00:00:56]} Kh6 {[%clk 00:07:46]} {[%emt 00:01:25]} 49. Bxa4 {[%clk 00:04:28]}
{[%emt 00:00:32]} Rxa4 {[%clk 00:08:12]} {[%emt 00:00:04]} 50. Rxb2 {[%clk
00:04:07]} {[%emt 00:00:51]} Kg5 {[%clk 00:08:11]} {[%emt 00:00:31]} 51. Kd3
{[%clk 00:03:44]} {[%emt 00:00:52]} Kxf5 {[%clk 00:08:13]} {[%emt 00:00:28]} 52.
Rb5+ {[%clk 00:03:48]} {[%emt 00:00:26]} Kg6 {[%clk 00:08:38]} {[%emt
00:00:05]} 53. d5 {[%clk 00:03:08]} {[%emt 00:01:10]} Kf5 {[%clk 00:08:45]}
{[%emt 00:00:23]} 54. d6+ {[%clk 00:02:15]} {[%emt 00:01:23]} Ke6 {[%clk
00:09:10]} {[%emt 00:00:05]} 55. Rxh5 {[%clk 00:02:41]} {[%emt 00:00:04]} Kxd6
{[%clk 00:09:33]} {[%emt 00:00:07]} 56. e4 {[%clk 00:01:20]} {[%emt 00:01:50]}
Ra3+ {[%clk 00:09:47]} {[%emt 00:00:17]} 57. Ke2 {[%clk 00:01:18]} {[%emt
00:00:31]} Rh3 {[%clk 00:08:48]} {[%emt 00:01:29]} 58. Rxh3 {[%clk 00:01:37]}
{[%emt 00:00:11]} 1/2-1/2